{"text_format":"2","workbook":"xlsx","n_sheets":1,"sheets":["BOQ"],"not_rendered":{"charts":0,"images":0,"macros":0,"external_links":0,"defined_names":1,"comments":0,"pivot_tables":0},"unopened":[],"bounds":{"document_bytes":16777216,"sheet_cells":100000,"run_cost":"one","rows_first":2000,"rows_last":500,"rows_between":2000,"halvings":0,"cell_chars":16384,"cell_head_chars":4096},"cells_cut":0,"cells_raw":0,"read":"whole","date_system":"1900"}

{"sheet":"BOQ","index":0,"n_rows":108,"n_cols":8,"rows_kept":108,"cut":false,"hidden":false,"merged":[[5,1,5,5],[6,1,6,5],[0,0,0,5],[1,1,1,5],[2,1,2,5],[3,1,3,5],[4,1,4,5]]}
["Rehabilitation of Deanship of Engineering College-Mosul University-Ninawa Governorate"]
[null,"General Specification "]
[null,"1-All works and the materials supplied by the contractor must be in according with the relevant Iraq's standard Specifications ( It’s the contractor responsibility to obtain any relevant Iraqi specifications by visiting ministry of construction and housing web site: www.moch.gov.iq or physically obtain those documents from the mentioned ministry) in addition to Iraqi technical specification for building works."]
[null,"2-The contractor must provide samples, mockup, catalogues for testing / inspection and approval by the site engineer."]
[null,"3-Contractor must pay the cost for samples including any laboratory tests, both inside and outside the country as required "]
[null,"4-The price of works includes all job requirements as per Iraq's standard specification."]
[null,"5-The contractor must provide PPE for all laborer's, personnel, engineers and possible visitors to the site"]
["#","Item Description","Unit","Qty","Price$","Total $"]
[null,"CIVIL WORKS"]
[1,"Site preparation:\nSupply of materials, tools, machineries and manpower for site preparation. The work includes :    \n1-Clearing, stripping and levelling of the site.\n2-Removing undesired plants and other natural vegetation.\n3-Removing undesired furniture and transported it to the to any location instructed to.    \n4-Removing all the damaged roofing layers, slabs, walls, fences, finishing materials, flooring tiles, tile bedding, etc.\n5-Demolishing all the destroyed building parts.      \n6-Dumping of all the debris and rubble to a site approved by the local authorities.      \n All needed work to complete the job will be included within the price.","LS ",1,null,{"$f":"D10*E10","v":0}]
[2,"Masonry works above DPC level:\nSupply of materials, tools and manpower to rebuild walls above DPC level (20cm width) using hollow concrete blocks (20x20x40) cm with cement sand mortar (1:3).  The wall should be levelled vertically and horizontally. The price includes demolishing of all the damaged parts and removing of all debris and rubble to a site approved by the local authority. All needed works to complete the job will be included within the price. ","M2",260,null,{"$f":"D11*E11","v":0}]
[3,"Repairing of roofing joints with sealant(mastic):\nSupply of materials, tools and manpower to remove the defected sealants and fill the joints with joint sealant(mastic). The price includes cleaning the joints before filling with sealants. All needed works to complete the job will be included within the price.","M.L.",1200,null,0]
[4,"Changing the Sealant(Mastic) of Expansion Joints :                                                      \n Supply of materials, tools and manpower to remove the existing sealant (mastic) of the expansion joints and bside the wall of roof , cleaning and apply new sealant (mastic) or new waterproof material with cement :sand mortar (1:3) . All needed work to complete the job will be included within the price.","M.L.",400,null,0]
[5,"Plastic Suspended Ceiling :\nSupply of materials, tools and manpower to install plastic suspended ceiling 60x60 cm, 10mm thickness, by using necessary accessories L, T sections, hold down clips, galvanized steel rod 5mm (1.2x1.2m) for fixing with the ceiling by screws. The price includes the removal of old damaged suspended ceiling, dumping of all debris to a site approved by local authorities, in case it is needed. All needed work to complete the job will be included within the price. See attached drawing.","M2",200,null,0]
[6,"Gypsum board Suspended Ceiling :\nSupply of materials, tools and manpower to install  gypsum board suspended ceiling 60x60 cm, 10mm thickness, by using necessary accessories L, T sections, hold down clips, galvanized steel rod 5mm (1.2x1.2m) for fixing with the ceiling by screws. The price includes the removal of old damaged suspended ceiling, dumping of all debris to a site approved by local authorities, in case it is needed. All needed work to complete the job will be included within the price. See attached drawing.","M2",2800,null,0]
[7,"Gypsum plastering with crack repairing:\nSupply of all necessary materials, tools and manpower to remove the damaged gypsum plastering of internal walls & ceiling and plastering with new gypsum plastering  in 2 layers minimum thickness 20mm.The work includes repairing of wall cracks by removing the damaged gypsum plastering 25cm at each side of the crack, then filling the cracks with cement mortar 1:3 and using SBR at a rate of 200gr per m2 , later putting a layer of plastic mesh on the area under the gypsum plastering. All needed works to complete the job, will be included within the price.","M2",2000,null,0]
[8,"Cement plastering with crack repairing:\nSupply of materials, tools and manpower to repair wall cracks and remove the damaged cement plastering of external walls & fence by removing the damaged cement plastering minimum 35cm at each side of the crack, then treat the cracks with crack filler approved by manufacture with cement mortar 1:3 and using SBR at a rate of 200gr per m2, later putting a layer of metal chicken mesh 10 cm overlap each side on the area with 3 layers of cement plastering 1:3. All needed works to complete the job, will be included within the price.","M2",300,null,0]
[9,"Limestone Window Frame ( كوبنات الحلان):\nSupply of materials, tools and manpower to remove the damaged limestone window frame and removing of all the debris to a site approved by local authority, then install new limestone window frame , thickness 5cm , width 25 -30 cm, using cement sand mortar. Dimensions, color and texture of limestone shall be the same as the existing. The work includes using BRC 200x200x5mm under the limestone. All needed work to complete the job will be included within the price.","M.L.",100,null,{"$f":"D18*E18","v":0}]
[10,"Marble Window Frame ( كوبنات مرمر):\nSupply of materials, tools and manpower to remove the damaged Marble window frame and removing of all the debris to a site approved by local authority, then install new Marble window frame , thickness 2cm , width 20 -25 cm, using cement sand mortar.  texture of limestone shall be the same as the existing. The work includes using BRC 200x200x5mm under the limestone. All needed work to complete the job will be included within the price.","M.L.",100,null,{"$f":"D19*E19","v":0}]
[11,"Marble Cladding Repairing:\nSupply of materials, tools and manpower to remove the damaged cladding and then install new Marble cladding for the entrance ( information room ) of the building , using cement sand mortar. Dimensions, color and texture of Marble shall be the same as the existing . The work includes using BRC 200x200x5mm under the Marble. The price includes dumping of all debris to a site approved by local authorities. All needed work to complete the job will be included within the price.","M2",260,null,{"$f":"D20*E20","v":0}]
[12,"Marble Opening Frame ( كوبنات مرمر):\r\nSupply of materials, tools and manpower  install new Marble opening frame , thickness 2cm , width 5 cm, using cement sand mortar and special paste for fixing and  bonding. All needed work to complete the job will be included within the price.","M.L.",200,null,0]
[13,"Emulsion painting:\nSupply of materials, tools and manpower to paint the interior walls and ceilings, with 3 layers of emulsion painting (Jotun, Betek, CAPAROL, Polisan, dyo or equivalent). The paint should be diluted (10%--15%) with water to achieve the coverage of painting of not more than (10-12) m2/Liter/layer. The job includes cleaning the walls and ceilings, removing the dirt and dust, repairing all the cracks and filling all the holes before painting. All needed works to complete the job, shall be included within the price.","M2",3500,null,{"$f":"D22*E22","v":0}]
[14,"Plastic painting:\nSupply of materials, tools and manpower to paint the exterior walls and fence, with three layers of plastic (silicon water proof) paint (Jotun, Betek, CAPAROL, Polisan, dyo or equivalent). The paint should be diluted (10%--15%) with water to achieve the coverage of painting of not more than (10-12) m2/Liter/layer.  The job includes cleaning the walls, removing the dirt and dust, repairing all the cracks and filling all the holes before painting. All needed works to complete the job, shall be included within the price.","M2",5000,null,0]
[15,"Skirting:\nSupply of materials, tools and manpower to apply ceramic skirting 10cm height using cement mortar. The price includes filling the joints with white cement. All needed work to complete the job will be included within the price.","M.L",400,null,0]
[16,"In-situ Polishing and glazing of floor terrazzo(mosaic) tiles:\nSupply of materials, tools and manpower for polishing and glazing of the terrazzo(mosaic) tiles. The price includes filling the joints with white cement paste. All needed work to complete the job will be included within the price.","M2",1000,null,0]
[17,"Ceramic tiles for Walls:\nSupply of materials, tools and manpower to remove the damaged ceramic tiles and dumping it to a place approved by local authority, then apply ceramic tiles for walls (25x50cm) or same as the existing size and color, using cement sand mortar(1:3), filling the joints with white cement . All needed work to complete the job will be included within the price.","M2",1400,null,0]
[18,"Ceramic tiles for Floors:\nSupply of materials, tools and manpower to remove the damaged ceramic tiles and dumping it to a place approved by local authority, then apply ceramic tiles for floors (30x30cm) or same as the existing size and color, using cement sand mortar(1:3), filling the joints with white cement . All needed work to complete the job will be included within the price.","M2",1000,null,0]
[19,"Ceramic tiles for bathroom Floors:\nSupply of materials, tools and manpower to remove the damaged ceramic tiles and dumping it to a place approved by local authority, then apply non-slip ceramic tiles for floors (40x40cm) or same as the existing size and color, using cement sand mortar(1:3), filling the joints with white cement . All needed work to complete the job will be included within the price.","M2",200,null,{"$f":"D28*E28","v":0}]
[20,"Porcelain tiles for Floors:\nSupply of materials, tools and manpower to remove the damaged porcelain tiles and dumping it to a place approved by local authority, then apply non-slip porcelain tiles for floors (40x40cm) or same as the existing size and color, using cement sand mortar(1:3), filling the joints with white cement . All needed work to complete the job will be included within the price.","M2",500,null,0]
[21,"Walkway concrete tiles (Interlock):  \nSupply of materials, tools and manpower to remove the damaged concrete tiles and dumping it to a place approved by local authority, then apply colored concrete tiles (Interlock type), using cement sand mortar(1:3), filling the joints with cement paste . All needed work to complete the job will be included within the price.","M2",750,null,0,null," "]
[22,"Marble steps(Tread and Riser) for stair:          \nSupplying materials, tools and manpower to remove damaged Marble steps and dumping it to a place approved by local authority, then apply new Marble steps,3 cm thick for the tread and 2cm for the riser and with 30cm width , using cement mortar (1:3) and rounding the external edges, filling joints by white cement mortar. All needed work to complete the job will be included within the price. See attached drawing.","M.L",30,null,0]
[23,"Mosaic steps(Tread and Riser) for stair:          \nSupplying materials, tools and manpower to remove damaged mosaic steps and dumping it to a place approved by local authority, then apply new mosaic steps,5 cm thick for the tread and 3cm for the riser and with 30cm width and 1.5m length using cement mortar (1:3) and rounding the external edges, filling joints by white cement mortar. All needed work to complete the job will be included within the price. See attached drawing.","M.L",50,null,0]
[24,"Aluminum Handrails:\nSupplying and installation of aluminum handrails (height of 80cm) with all accessories. The price includes removing the old steel handrails and providing bigger column sections at the beginning, turning and at the ends. All needed work to complete the job will be included within the price. See attached annex.","M.L",50,null,0]
[25,"Steel Handrail:\nSupply of materials, tools and manpower to install steel handrail for staircases and openings, using steel tubes as per the drawing. The price includes anti rust and three layers of oil painting with 3 layers of oil, wooden cap. All needed work to complete the job will be included within the price. See attached drawing.","M.L",50,null,0]
[26,"PVC Partitions(white color):\nSupply of materials, tools and manpower for installing PVC partitions (height according to the instruction of the engineer) including door, and opening part. The price of works includes PVC sheets, door locks, handles, hinges and frosted glass 4mm. All needed work to complete the job will be included within the price.","M2",200,null,0]
[27,"PVC Partitions(teak color):\nSupply of materials, tools and manpower for installing PVC partitions (height according to the instruction of the engineer) including door, and opening part. The price of works includes PVC sheets, door locks, handles, hinges and frosted glass 4mm. All needed work to complete the job will be included within the price.","M2",100,null,{"$f":"D36*E36","v":0}]
[28,"Aluminum Partitions:\nSupply of materials, tools and manpower for installing aluminum partitions (height according to the instruction of the engineer) including door , and opening part. The price of works includes aluminum sheets, door locks, handles, hinges and frosted glass 4mm. All needed work to complete the job will be included within the price.","M2",20,null,0]
[29,"PVC Windows with burglar:\nSupply of materials, tools and manpower to install PVC windows. The price includes handles, hinges, provide double glass of 4 mm thick, anti-insect wire mesh, steel outer frame of rectangular tube 75x50x2mm, steel burglar( frame made of angles 40x40x1.5mm and the inner portion made of square steel bar 12mm spaced at 15cm with one layer of anti rust and two layers of oil painting). All needed work to complete the job will be included within the price.","M2",400,null,0]
[30,"Steel windows:\nSupply of materials, tools and manpower to install steel windows (using T, L and Z shapes). The price of works includes anti rust painting and two layers of oil painting, anti-insects wire mesh, handles, windows stopper and crystal clear class 4mm thickness with paste. All needed work to complete the job will be included within the price.","M2",200,null,0]
[31,"Steel Door with the Frame Double Leaves for internal of building(thermal paint type for coating) :\nSupply of materials, tools and manpower to install steel door with frame, with steel plate gauge18(1.41mm) on double face, using steel tube 50x50x3mm, including a layer of Styrofoam to be placed between the two faces, hinges, doors handles, locks and fixing a stopper on the floor or wall. The price of work includes the painting of steel door using thermal paint type for coating. All needed work to complete the job will be included within the price. See attached annex.","M2",10,null,0]
[32,"Steel Door with the Frame Double Leaves  :\nSupply of materials, tools and manpower to install steel door with frame, with steel plate gauge 18(1.41mm) on double face, using steel tube 40x40x3mm, including a layer of Styrofoam to be placed between the two faces, hinges, doors handles, locks and fixing a stopper on the floor or wall. The price of work includes the painting of steel door using anti-rust and 2 layers of oil paint. All needed work to complete the job will be included within the price. See attached drawing.","M2",20,null,{"$f":"D41*E41","v":0}]
[33,"Wooden doors with Frame(1.0x2.10m):\nSupply of materials, tools and manpower to install teak (saj) wooden doors with red cedar (jaw) frame. Price of the work shall include removing the damaged doors and frames, door locks, handles, hinges, teak painting and varnish painting. Also repairing the gypsum plastering and cement plastering of the edges .All needed work to complete the job will be included within the price. See attached drawing.","NO.",60,null,0]
[34,"PVC Doors with Frame:\nSupply of materials, tools and manpower to install PVC doors with frame. The PVC section should be wide section. The lower 1.0m portion of the door to be covered by PVC sheets and the upper portion will be covered by frosted glass 6mm. The price includes hinges, handles, locks and frosted glass (6mm) . All needed works to complete the job, will be included within the price. See attached drawing.","M2",100,null,0]
[35,"Repair Steel Windows:\nSupply of materials, tools, machineries and manpower to repair the damaged steel windows, including welding, painting, anti-insects wire mesh for openable parts and handle. All needed works to complete the job, will be included within the price.","M2",300,null,0]
[36,"Repair steel doors:\nSupply of materials, tools, machineries and manpower to repair the damaged steel doors. Price of works shall include door lock, handles, hinges, oil painting and accessories. All needed work to complete the job will be included within the price.","M2",20,null,0]
[37,"Replacing Damaged color Corrugated Sheet:                                                                \nSupply of materials, tools and manpower to replace the damaged corrugated metal sheet with new color corrugated plastic sheet  thickness 1.2mm , fixed by screws with rubber every 25cm and overlapped in order to prevent water leakage .The price also includes dumping of all debris to a site approved by local authorities.  All needed work to complete the job will be included within the price.","M2",180,null,{"$f":"D46*E46","v":0}]
[null,"SUB TOTAL FOR CIVIL WORKS ",null,null,null,{"$f":"SUM(F10:F46)","v":0}]
[null,"SANITARY WORKS"]
[1,"Water tank:\nSupply of materials, tools and manpower for installing galvanized water tank of 1250 liters. Cylindrical shape and with plate gauge 16(1.56mm), supported by steel base made with 50mm (2\") angle shape, including the connection of the inlet and outlet pipes. The price of work includes all piping and fittings, valves, float valves, accessories. All needed work to complete the job will be included within the price.","NO.",6,null,{"$f":"D49*E49","v":0}]
[2,"Siphon (Flush Tank):\nSupply of materials, tools and manpower to install siphon, valves and all needed accessories for completing water connections. All needed works to complete the job, will be included within the price.","NO.",20,null,0]
[3,"Taps: \nSupply of materials, tools and manpower to connect chrome water taps 1/2\" or 3/4\". Price of the work shall include water connections. All needed work to complete the job will be included within the price.","NO.",10,null,0]
[4,"Ceramic wash basin:                                                                                                        \nSupply of materials , tools and manpower to install ceramic wash basin with stand, mixer taps , valves , mirror(60x50)cm and all  fittings with complete water connections . All needed work to complete the job will be included within the price.","NO.",20,null,0]
[5,"Eastern toilet:\nSupply of materials, tools and manpower to remove the damaged eastern toilet pan and to install new ceramic eastern toilet. Including siphon(flush tank),  gully trap Ø100mm (4\"), flexible hose and water connections. All needed work to complete the job will be included within the price.","NO.",20,null,0]
[6,"Western toilet:\nSupply of materials, tools and manpower to install ceramic western toilet. Including siphon,  gully trap Ø100mm (4\"), flexible hose 5mm, water connections and flushing tank. All needed work to complete the job will be included within the price.","NO.",3,null,0]
[7,"Clean the sewerage :                                                                                                          \n Supply of materials, machine and manpower to clean the sewerage pipes net starting from the toilets, manholes to the main septic tank using high pressure air/water. The work includes replace the damaged manhole covers and others with new one.  All needed work to complete the job will be included within the price.","LS",1,null,0]
[8,"Roof Drain pipes (4\"):\nSupply of materials, tools and manpower to remove the damaged water roof drain pipes and install new galvanized steel pipes 4\" (100mm). Including all connections and needed accessories to fix on roof and walls. All needed work to complete the job will be included within the price. See attached drawing.","M.L",100,null,0]
[9,"Floor Drain (15*15) cm:       \nSupply of materials, tools and manpower to install and inspect floor drain (15*15) cm with cover from (stainless steel) 6 inch. The work include UPVC gully trap dimeter 4 inch with all pipes and fittings, excavation, concreting around pipes and gullies. All needed works to complete the job, shall be included within the price.    ","NO.",5,null,0]
[10,"PVC pipe 2.5\" (Ø 62.5mm):\nSupply, installation, testing and commissioning of PVC 2.5\"(62.5mm) 6 bar for drainage and ventilation pipes down to manholes with all required fittings including excavation, back filling, incasing with sulphate resistant cement concrete and roof vent caps. All needed works to complete the job, will be included within the price.","M.L",300,null,0]
[11,"PVC pipe 4\" (Ø 100mm):\nSupply, installation, testing and commissioning of PVC 4\"(100mm) 6 bar for drainage and ventilation pipes down to manholes with all required fittings including excavation, back filling, incasing with sulphate resistant cement concrete and roof vent caps. All needed works to complete the job, will be included within the price.","M.L",200,null,0]
[12,"PPR pipes(1/2\"):\nSupply and install PPR pipes (½)” diameter.  The price includes all fittings and accessories, excavation, backfilling, isolate all hot water pipes by using arm flex and thermal tape and concreting 10cm around the pipes. All needed work to complete the job will be included within the price.","M.L",300,null,0]
[13,"PPR pipes(3/4\"):\nSupply and install PPR pipes (3/4)” diameter.  The price includes all fittings and accessories, excavation, backfilling, isolate all hot water pipes by using arm flex and thermal tape and concreting 10cm around the pipes. All needed work to complete the job will be included within the price.","M.L",300,null,0]
[14,"PPR pipes(1\"):\nSupply and install PPR pipes (1)” diameter.  The price includes all fittings and accessories, excavation, backfilling, isolate all hot water pipes by using arm flex and thermal tape and concreting 10cm around the pipes. All needed work to complete the job will be included within the price.","M.L",100,null,0]
[null,"Subtotal for Sanitary Works",null,null,null,{"$f":"SUM(F49:F62)","v":0}]
[null,"Electricals Works"]
[1,"Sub-distribution board(24 way)\n Supply, install, test and commissioning sub distribution board of 24 ways, TPN DB (DIN type) with metal door (double ) complete with all accessories to accommodate incoming  circuit breaker (MCB)3ph, 3 P,150A, 415 volt A.C, and different current rating outgoing 1ph  MCB's(according to engineer instructions) in prefabricated MS surface MS cubical control panel board according to technical specifications. The price include removing the old board and dispose to the designated location by the end user.\n","NO",2,null,{"$f":"D65*E65","v":0}]
[2,"Sub-distribution board(18 way)\n Supply, install, test and commissioning sub distribution board of 18 ways, TPN DB (DIN type) with metal door (double ) complete with all accessories to accommodate incoming  circuit breaker (MCB)3ph,3 P,125A, 415 volt A.C, and different current rating outgoing 1ph  MCB's(according to engineer instructions) in prefabricated MS surface MS cubical control panel board according to technical specifications. The price include removing the old board and dispose to the designated location by the end user.\n","NO",2,null,0]
[3,"LED Panel Light:\nSupply, install, connect and commissioning of (60x60)cm LED panel light aluminum, (50watt), (Energy saver A or A+), (maximum 0.25A), (3800 lm), (thermal color 6500K),with switch(6A), by using cable 2x1.5 mm², 1.0 kV grade PVC insulated copper conductor through PVC pipe. The price include supply, install of wires, PVC pipes, switched, accessories, works(cutting, drilling, repairing,. etc.) and any other to complete the work entirely according to technical specifications.","NO",250,null,0]
[4,"Ceiling fan:\n Supply, install, test and commission of ceiling fan (240V A.C 1400 rpm,1400mm sweep with 56\")  the down rod of standard length upto 300mm with sweep 3 Nos.,canopy 2 Nos., condenser and fan body and regulator including wiring  (2x1.5mm²) cable 1.0 kV grade cable PVC insulated copper conductor through PVC pipe. The price include supply & installation of wire, PVC pipe, regulator,  all material, accessories needed, works(cutting, drilling, repairing,. etc.) and any other to complete the job entirely according to technical specifications.","NO",50,null,0]
[5,"Indoor Spot Lights(LED 18w):\nSupply of circular prewired indoor spots and clamps surface/ceiling mounted lamp 18 watts LED(thermal color k6500), (min. 1250 lm), (max. 160mA), complete with all accessories. The price include supply & installation of single way 6A lighting switch with 2x 1.5 mm², 1.0 kV grade PVC insulated copper conductor through PVC pipe. The price include supply, install of wires, PVC pipes, switched, accessories, works(cutting, drilling, repairing,. etc.) and any other to complete the work entirely according to technical specification.","NO",50,null,0]
[6,"Outdoor Bracket light(LED)\n Supplying, Installing and commissioning of outdoor weatherproof bracket wall mounted LED lamp(60W), wiring with 2 x 1.5mm², 1.0 kV grade PVC insulated copper conductor through PVC pipe with one way 6A switch as required complete with all accessories. The price include supply, install of wires, PVC pipes, switched, accessories, works(cutting, drilling, repairing,. etc.) and any other to complete the work entirely according to technical specifications.","NO",15,null,0]
[7,"Exhaust Fan(6\"):\n Supplying, install, test and commissioning of exhaust fan size 6\", 220 volt A.C 1400 rpm with all accessories. The price  include supply & installation of 1ph, 1-way 6A switch with 1.0kV grade 2x1.5 sq.mm single core PVC insulated copper wire, passing through/in PVC pipes. The price include all required material, accessories, works(cutting, drilling, repairing,. etc.) and any other to complete the work entirely according to technical specifications.","NO",12,null,0]
[8,"Power Cable (3x120+70)mm²\n Supply, installation, testing and commissioning of 1.0 kV grade PVC insulated   armoured copper cable (3x120+70)mm²,to connect the control room to the substation, the price include all requirements(cable termination, lugs, trays, clamps, all accessories....etc.), necessary connections, works( cutting, drilling, painting,.. etc.) and any other to complete the work as required according to technical specifications.","M",150,null,0]
[9,"Cable Trench\n Supply material, tools and manpower for excavation of cable trench with dimensions (100x50)cm, backfill first clean sand layer (10cm), laying cables, second clean sand layer (10cm), new concrete tiles dimensions (40*40cm), sub base material layer, warning tape, re backfill & restore the ground to its original situation either concrete, asphalt,..etc... according ground situation requirements and according to engineer instructions. The price include all required material, works and any other to complete the work entirely according to technical specification.   ","M",120,null,0]
[10,"Power Cable [(4x25)mm²+10mm²]\n Supplying, installation, testing and commissioning of 1.0 kV grade PVC insulated un armoured copper cable [(4x25mm²)+10mm² for grounding],to connect the control room with substitution board, the price include all requirements(cable termination, lugs, trays, clamps, all accessories....etc.), necessary connections, works( cutting, drilling, painting,.. etc.) and any other to complete the work as required according to technical specifications.","M",60,null,0]
[11,"Power Cable [(4x35)mm²+16mm²]\n Supplying, installation, testing and commissioning of 1.0 kV grade 1.0 kV grade PVC insulated un-armoured copper cable [(4x35mm²)+16mm² for grounding],to connect the control room with sub distribution board, the price include all requirements(cable termination, lugs, trays, clamps, all accessories....etc.), necessary connections, works( cutting, drilling, painting,.. etc.) and any other to complete the work as required according to technical specifications.","M",60,null,0]
[12,"Power Cable (4x10)mm²\n Supplying, installation, testing and commissioning of 1.0 kV grade PVC insulated unarmored copper cable  (4x10mm²),to connect the control room with sub distribution board, the price include all requirements(cable termination, lugs, trays, clamps, all accessories....etc.), necessary connections, works( cutting, drilling, painting,.. etc.) and any other to complete the work as required according to technical specifications.","M",200,null,0]
[13,"Power Cable (4x4)mm²\n Supplying, installation, testing and commissioning of 1.0 kV grade PVC insulated Un-armoured copper cable (4x4mm²),to connect the control room with sub distribution board, the price include all requirements(cable termination, lugs, trays, clamps, all accessories....etc.), necessary connections, works( cutting, drilling, painting,.. etc.) and any other to complete the work as required according to technical specifications.","M",200,null,0]
[14,"13A Socket outlet:\n Supply, Installation, testing and commissioning of combine switch-socket 13A, 3 pin universal socket with shuttered & indicator outlet, on molded tough surface box with fibre sheet cover (recessed or surface) wiring with 1.0 kV grade  PVC insulated copper wires; [(2x2.5mm²)+(1x1.5mm² for grounding)] passing through PVC conduit(20X1.8)mm. The price include supply & installation of cable, PVC pipe, light, 1 way switch(6A) ","NO",200,null,0]
[15,"45A Switch\n Supplying,  Installation, testing and commissioning of 45A grid switch with indicator lamp for water boiler and Split units, wiring with 1.0 kv grade,(2x4+1x 2.5mm²) PVC insulated copper conductor passing through PVC pipes inside walls. The price include supply & installation of cable, PVC pipe, all material, accessories needed and any other  to complete the job entirely according to technical specifications.).","NO",50,null,0]
[16,"3Ph 32A power outlet:\n Supplying, Installation, testing and commissioning of  3ph power intake point using 3phase MCB circuit breaker 32A with in small case mounted inside the wall, connect to the source of 32A MCB with1.0 kV grade [(3x6mm²)+(2X6mm² (ground &neutral))] PVC insulated copper wires passing through/in PVC conduit.\nThe price include supply, install & testing of two MCB units(32A), wires, PVC pipe all material, accessories, works(connections, cutting, drilling, repairing, painting,...etc.) and any other to complete the work entirely according to technical specifications.","NO",8,null,0]
[17,"Outdoor LED Lighting Fixture(Projector 150W)\n Supply, installation, testing and commissioning of projector (150watt) LED, outdoor weather proof, waterproof type(IP65), metal frame, with heat radiator, (1800 lm), (energy saver A or A+) (max.0.6A). The price include supply, installation of PVC insulated copper conductor(2x2.5mm²) 1.0 kV grad  & PVC pipe, with single way manual  lighting switch (6A) complete with all accessories as required to complete entirely according to technical specifications.","NO",6,null,0]
[18,"Photo Cell Board\n Supply, Installation, testing and commissioning of photocell board metal frame enclosure with twin internal and external door, dimensions (H:40, W:30 D:25), using rubber gaskets and equipped at least with the following:\n1-One (1) set of triple pole magnetic contactor (65A). \n2-One (1) set of MCB circuit breakers 3Ph 3 P, (50A). \n3- One(1) set of three position selector switch (Manual-0-Auto), \n4- One (1) set of photo cell box waterproof enclosure metal frame. \n5- One (1) set of photo cell adjustable switch 13A, 230VAC. \n The price include supply & installation of the cable between the board and the power source, all other material, works and any other to complete according to technical specifications.","NO",1,null,0]
[null,"Subtotal for Electricals Works",null,null,null,{"$f":"SUM(F65:F82)","v":0}]
[null,"Communication & Computer Works"]
[1,"Telephone Main Distribution Board\nSupplying, Installation, testing and commissioning of telephone main distribution box (MDF),capacity not less than 200 port with terminal blocks, provided with locker, designated telephone numbers, in prefabricated MS surface complete with all accessories and requirements to operate whole the system properly.","NO",1,null,{"$f":"D85*E85","v":0}]
[2,"Telephone Sub Distribution Board\nSupplying, Installation, testing and commissioning of telephone sub distribution box (SDF),capacity not less than 50 port with terminal blocks, provided with locker, written telephone numbers, in prefabricated MS surface complete with all accessories and requirements to operate whole the system properly.","NO",1,null,0]
[3,"Telephone Cable\nSupplying, Installation, testing and commissioning of telephone cable [(2x0.5mm²)x30], to connect the main distribution box(MDF) to sub distribution boxes(SDF), passing through 20mm dia PVC pipes, cable tray, plastic box and all accessories. The price include supply & installation of wires, PVC pipes, all material, accessories, works(cutting, drilling, repair, painting) and any other to complete the work entirely according to technical specifications. ","M",50,null,0]
[4,"Telephone socket outlet\nSupplying, Installation, testing and commissioning of telephone socket outlet(RJ11),  installed by using (4x0.5mm²) telephone wires inside 20mm dia PVC pipe under wall surface(hidden), at the corridors carried on galvanized metal cable trays, providing junction boxes at the corners, numbering with plastic rings on both ends, plastic box, all outlet sockets to be provided with sticker numbers properly. The price include supply & installation of wires, PVC pipes, accessories, all associated works;(drilling, cutting, repairing, painting,. etc.)and any other work to complete and operate the whole system properly according to technical specifications.","NO",60,null,0]
[5,"LAN\nSupplying, Installation, testing and commissioning of LAN network for connecting computers, wiring with cable(UTP Cat6) to complete with all required material to connect the main distribution board to sub switches (two lines for each switch) also to connect the sub switches to wall mounted internet socket outlet (RJ45), at rooms and halls installed inside 20mm dia.under wall surface(hidden), at the corridors carried on galvanized metal cable trays, providing junction boxes at the corners, numbering with plastic rings on both ends, plastic box, all outlet sockets to be provided with sticker numbers properly. The price include supply, installation of wires, PVC pipes, all material, associated works;(drilling, cutting, repairing, painting, . etc.) and any other to complete and operate the whole system properly according to technical specifications.","NO",75,null,0]
[6,"Sub Switches\nSupplying, Installation, testing and commissioning of sub switches of type (24-10/100 port) (Linksys) compatible with (Cisco protocols) to be distributed inside the building according to prepared sketch, inside prefabricated Aluminum frame with glass lockable complete with all requirements and all accessories. The price include all material, accessories, works(cutting, drilling, repair, painting) and any other to complete the work entirely according to technical specifications. ","NO",2,null,0]
[7,"Internet receiver-transmitter:\nSupplying, Installing, testing and commissioning of internal internet receiver-transmitter of type (Nano station, 2.4GHz), (ubnt or equivalent),complete set with all accessories, to be connected with computer network inside the building(should be compatible with  the internet service provider). The price includes supplying, installing, testing and commissioning with all accessories connections and any other requirements to operate the whole system and function properly.","No",5,null,0]
[8,"Cable Tray(10x5)cm\n Supplying, installation and fixing galvanized metal cable tray with associated cover, dimensions (10x5)cm, either fixed with brackets or suspended holders, distance not more than 1.5m according to the requirement. The cable tray include tray offsets upwards/downwards, diversion parts, division triangle, curves, branches, path changing. Cutting and modification not allowed. The price include all required material, accessories and associated works(cutting, drilling, repair, painting) and any other to complete the work entirely. The path of the cable tray will be identified by the engineer.","M",200,null,0]
[9,"Plastic Cable Tray(6x4)cm\n Supply, installation and fixing plastic cable tray with associated cover, dimensions (6x4)cm, fixed on the walls using anchor bolts. The price include all required material, accessories and associated works(cutting, drilling, repair, painting) and any other to complete the work entirely. The path of the cable tray will be identified by the engineer.","M",200,null,0]
[null,"Subtotal for Communication & Computer  Works",null,null,null,{"$f":"SUM(F85:F93)","v":0}]
[null,"Mechanical works"]
[null,"for more details for items see compliance sheet"]
[1,"Supply, install, test, operation and commissioning of multi compressor VRF air conditioning system, outdoor capacity 24 ton :the price include, workshop drawings, supply , installed, jointed, insulating copper pipes and tested complete with  fittings,  welded copper piping connections ,  accessories, supports, sleeves and hangers approved for HVAC service, including nitrogen, vacuumed and oxygen testing for copper pipes by 600 PSI, vibration isolators, iron bases, suitable cable tray for copper pipes between indoor and out door units, connect and installed circuit breakers, distribution boarder, connection between indoor and out door units by a signal cable with a central controllers, installing of pvc pipe for condensing drainage pipe net pipe and connected to the nearest floor  and  all as specified and acceptance of the Supervisor Engineer.\nA/ Supply (indoor unit) is hot and cool of the cassette type Four-way  type, the indoor units shall be equipped with a water pump to drain the condensing water smoothly.\nb/Supply of an external unit (out Door unit) with multiple compressors 24 Ton of R410a gas with all accessories to work from (0 – 100%) as a variable load to achieve the best supply of electrical power These units must be operated in an atmosphere equatorial Iraq up to (52) °c is appropriate and compatible to work with all the internal units ' capacities and actual capacity and to achieve the required thermal grade load noted above.\nc/ If the pipes and electrical links from the hole on the roof of the building cannot be landed, Is coming down with the wall (the outer of the building) They're all wrapped in an iron box that fits the shape of the building. Without distorting the aesthetic of the building, And it proves well that it paint with oil painting and in a suitable color for the building determined by the Honorable engineer. The company has to bear the costs of that and insert pipes and all the electrical connectors from a suitable slot in the wall. and throwing the resulting debris into the place is convenient and replugging the halls. It's a good way. The executing company."]
[1.1000000000000001,"VRF out door unit capacity 24 ton (Attached compliance sheet item 01 for all indoor units )","No.",3,null,{"$f":"D98*E98","v":0}]
[1.2,"Indoor cassette type 24000 BTUH ","No.",31,null,{"$f":"D99*E99","v":0}]
[1.3,"Indoor cassette type 36000 BTUH","No.",1,null,{"$f":"D100*E100","v":0}]
[1.4,"Indoor cassette type 48000 BTUH","No.",1,null,{"$f":"D101*E101","v":0}]
[2,"AC units\nSupply, install, fixing, connect, test and commissioning best quality wall mounted Split unit air-conditioning (Cool & Heat). The price include  supply & installation of 1.0 kV grade 3*4mm² PVC insulated  copper cable with switch 45 A for single phase AC units and 4X6mm² with 3 P, MCB 32 Amp for 3 phase AC units (if any) . Also the price include installation of the out door units on the roof  of building or installed suspended with wall by special iron base with all accessories of the building with base vibration absorber height more than 4cm for out door units, protection cage, the devices also include all accessories with all extra copper pipes connections through the 3 inch PVC sleeve pipe also extra refrigerant gas, cable tray, the net work condensing 1 inch PVC pipe an must be connected to the nearest floor drain. With all accessories needed, as well as all needed works to complete the job entirely."]
[2.1,"48000BTUH vertical type (Compliance sheet item 2.1)","No.",16,null,{"$f":"D103*E103","v":0}]
[2.2000000000000002,"24000BTUH wall mounted (Compliance sheet item 2.2)","No.",41,null,{"$f":"D104*E104","v":0}]
[3,"Maintenance\nMaintenance, replacing(if any damaged parts/items ), Testing, cleaning and operating of air conditioning split units off all types ( vertical , window , celling , wall mounted ), And the completion of the shortage in case of any defect appears during the operation, providing remote control or wired thermostat control for Each unit in case of loss or damage each according to capacity and type of air conditioning unit, And the obligation to connect all electrical connections required for operation, the price include all accessories works, insulation of supply and return pipes, connection the condensing pipes.","No.",20,null,{"$f":"D105*E105","v":0}]
[4,"Removing AC unit\nDismantling of all damaged type of air conditioning units ( wall mounted, vertical, window type and ceiling type ) with all internal and external accessories, And not to damage the remaining parts during the dismantling, And packaged well in boxes and transferred to universities warehouses, And plug the openings of the devices removed in a systematic manner that maintains the aesthetic of the building and According to the directions of the supervisor.","No.",36,null,{"$f":"D106*E106","v":0}]
[null,"Subtotal for Mechanical Works",null,null,null,{"$f":"SUM(F98:F106)","v":0}]
[null,"Total",null,null,null,{"$f":"F107+F94+F83+F63+F47","v":0}]